{"text_format":"1","workbook":"xlsx","n_sheets":2,"sheets":["DLP","Sheet2"],"not_rendered":{"charts":0,"images":1,"macros":1,"external_links":0,"defined_names":7,"comments":0,"pivot_tables":0},"unopened":[],"bounds":{"document_bytes":16777216,"sheet_cells":100000,"rows_first":2000,"rows_last":500,"rows_between":2000,"halvings":0,"cell_chars":16384,"cell_head_chars":4096},"cells_cut":0,"cells_raw":0,"read":"whole","date_system":"1900"}

{"sheet":"DLP","index":0,"n_rows":30,"n_cols":30,"rows_kept":30,"cut":false,"hidden":false,"merged":[]}
[null,null,null,null,null,null,null,null,null,null,null,null,null,null,null,null,null,null,null,null,null,null,null,null,null,null,null,"Z*T（目標）"]
[null,null,"X(1)T(入力)",null,null,null,"W(1)T（固定重み）",null,null,null,"U(1)T（活性値）",null,null,null,null,null,"Z(2)T（出力）",null,null,null,null,null,null,null,null,null,null,6]
["第","例1",1,0,0,null,-1,-1,-3,null,{"$f":"MMULT(X1T,W1T)","v":-1},-1,-3,null,null,"例1",{"$f":"step1(Q10)","v":1},null,null,null,null,null,null,null,null,null,null,{"$f":"HLOOKUP(AB$2,PS,2,FALSE)","v":0},"例1"]
["一","例2",1,0,1,"×",2,0,2,"＝",-1,1,-1,null,null,"例2",{"$f":"step1(Q11)","v":1},null,null,null,null,null,null,null,null,"誤差 ET = Z*T － Z(2)T",null,{"$f":"HLOOKUP(AB$2,PS,3,FALSE)","v":1},"例2"]
["層","例3",1,1,0,null,0,2,2,null,1,-1,-1,null,null,"例3",1,null,null,null,null,null,null,null,null,null,null,{"$f":"HLOOKUP(AB$2,PS,4,FALSE)","v":1},"例3"]
[null,"例4",1,1,1,null,null,null,null,null,1,1,1,null,null,"例4",1,null,null,null,null,null,null,null,null,null,null,{"$f":"HLOOKUP(AB$2,PS,5,FALSE)","v":0},"例4"]
[null,null,"x0(1)","x1(1)","x2(1)",null,null,null,null,null,null,null,null,null,null,"f"]
[null,null,null,null,null,null,null,null,null,null,null,null,"f (活性化関数)"]
[null,null,null,null,null,null,null,null,null,"Z(1)T = X(2)T",null,null,null,null,"W(2)T",null,"U(2)T",null,null,null,"X(2)",null,null,null,null,"ET",null,"X(2)ET = (EX(2)T)T"]
[null,null,null,null,null,null,null,"第","例1",1,{"$f":"step1(K3)","v":0},{"$f":"step1(L3)","v":0},0,null,0,null,{"$f":"MMULT(X2T,W2T)","v":0},null,null,"(2)x0",{"$f":"TRANSPOSE(X2T)","v":1},1,1,1,null,{"$f":"AB3-Q3","v":-1},null,{"$f":"MMULT($U$10:$X$13,Z10:Z13)","v":-2}]
[null,null,null,null,null,null,null,"二","例2",1,{"$f":"step1(K4)","v":0},1,0,"×",0,"＝",0,null,null,"(2)x1",0,0,1,1,"×",{"$f":"AB4-Q4","v":0},"＝",-1]
[null,null,null,null,null,null,null,"層","例3",1,{"$f":"step1(K5)","v":1},0,0,null,0,null,0,null,null,"(2)x2",0,1,0,1,null,0,null,-1]
[null,null,null,null,null,null,null,null,"例4",1,{"$f":"step1(K6)","v":1},1,1,null,0,null,0,null,null,"(2)x3",0,0,0,1,null,-1,null,-1]
[null,null,null,null,null,null,null,null,null,"x0(2)","x1(2)","x2(2)","x3(2)"]
[null,null,null,null,null,null,null,null,null,null,null,null,null,null,null,null,null,null,null,null,null,null,null,null,null,null,null,null,"× ε",1]
[null,null,null,null,null,null,null,null,null,null,null,null,null,null,null,null,"転置",null,null,null,null,null,null,null,null,null,null,"ΔWT"]
[null,null,null,null,null,null,null,null,"x1(2) = x1(1)",null,null,null,null,null,null,null,null,null,null,null,null,null,null,null,null,null,null,{"$f":"AB10*$AD$15","v":-2}]
[null,null,null,null,null,null,null,null,"x2(2) = x2(1)",null,null,null,null,null,null,null,null,null,null,"W(2)Tへ加算（Ctrl-l）",null,null,null,null,null,null,null,{"$f":"AB11*$AD$15","v":-1}]
[null,null,null,null,null,null,null,null,"x3(2) = x1(1) AND x2(1)",null,null,null,null,null,null,null,null,null,null,null,null,null,null,null,null,null,null,{"$f":"AB12*$AD$15","v":-1}]
[null,null,null,null,null,null,null,null,null,null,null,null,null,null,{"$f":"IF($O$11=1,\"\",IF($O$11=-1,\"-\",$O$11))","v":0},"x1(2)",{"$f":"IF(O12=1,\"+\",IF(O12=-1,\"-\",O12))","v":0},"x2(2)",{"$f":"IF(O13=1,\"+\",IF(O13=-1,\"-\",O13))","v":0},"x3(2)","≧",{"$f":"-O10","v":0},null,null,null,null,null,{"$f":"AB13*$AD$15","v":-1}]
[]
[]
[]
[]
[null,null,"出力パターン"]
[null,null,0,1,2,3,4,5,6,7,8,9,"A","B","C","D","E","F"]
[null,null,0,1,0,1,0,1,0,1,0,1,0,1,0,1,0,1]
[null,null,0,0,1,1,0,0,1,1,0,0,1,1,0,0,1,1]
[null,null,0,0,0,0,1,1,1,1,0,0,0,0,1,1,1,1]
[null,null,0,0,0,0,0,0,0,0,1,1,1,1,1,1,1,1]

{"sheet":"Sheet2","index":1,"n_rows":4,"n_cols":18,"rows_kept":4,"cut":false,"hidden":false,"merged":[]}
[]
[]
[]
[null,null,null,null,null,null,null,null,null,null,{"$f":"DLP!O20","v":0},"x1(2)",{"$f":"DLP!Q20","v":0},"x2(2)",{"$f":"DLP!S20","v":0},"x3(2)","≧",{"$f":"DLP!V20","v":0}]